[Event "Fagernes Chess GM-Swiss 2025"]
[Site "Fagernes"]
[Date "2025.04.17"]
[Round "6.1"]
[White "Ghasi, Ameet K"]
[Black "Jumabayev, Rinat"]
[Result "1-0"]
[Annotator "RC"]
[ECO "E04"]
[WhiteElo "2502"]
[BlackElo "2549"]
[PlyCount "55"]
[EventDate "2025.04.12"]
[EventCountry "NOR"]
[SourceTitle "playchess.com"]
[Source "ChessBase"]
[SourceQuality "1"]
[TimeControl "40/6000+30:2400+30"]

1. c4 {[%emt 0:01:24]} e6 {[%emt 0:02:17]} 2. Nf3 {[%emt 0:01:15]} d5 {[%emt 0:00:07]} 3. d4 {[%emt 0:00:13]} Nf6 {[%emt 0:00:09]} 4. g3 {[%emt 0:00:07]} Nbd7 {[%emt 0:15:07]} 5. Bg2 {[%emt 0:06:38]} dxc4 {[%emt 0:00:31]} 6. Qc2 {[%emt 0:11:25]} c5 {[%emt 0:20:39]} 7. O-O {[%emt 0:12:17]} b5 {[%emt 0:09:16]} 8. a4 {[%emt 0:14:46]} b4 {[%emt 0:07:03]} 9. Ne5 {[%emt 0:06:24]} Nxe5 {[%emt 0:10:48]} 10. dxe5 {[%emt 0:01:35]} Nd5 {[%emt 0:00:11]} 11. Rd1 {[%emt 0:04:49]} Qc7 {[%emt 0:07:59]} 12. Nd2 {[%emt 0:03:09]} c3 {[%emt 0:01:36]} 13. Nc4 {[%emt 0:01:35]} Rb8 {[%emt 0:07:50]} 14. e4 {[%emt 0:10:27]} b3 {[%emt 0:00:56]} 15. Qe2 {[%emt 0:10:46]} c2 {[%emt 0:02:42]} 16. Rxd5 {[%emt 0:00:07]} exd5 {[%emt 0:00:12]} 17. exd5 {[%emt 0:00:01]} Ba6 {[%emt 0:04:13]} 18. d6 {[%emt 0:02:57]} Qd7 {[%emt 0:05:22]} 19. e6 {[%emt 0:07:44]} Qxe6 {[%emt 0:07:04]} 20. Bc6+ {[%emt 0:02:20]} Kd8 {[%emt 0:00:00]} 21. Bg5+ {[%emt 0:00:14]} Be7 {[%emt 0:03:58]} 22. Bxe7+ {[%emt 0:02:03]} Kc8 {[%emt 0:00:04]} 23. Qd2 {[%emt 0:01:50]} Bxc4 {[%emt 0:01:29]} 24. Re1 {[%emt 0:00:53]} Qxe1+ {[%emt 0:02:24]} 25. Qxe1 {[%emt 0:00:03]} Be6 {[%emt 0:00:27]} 26. Qe3 {[%emt 0:02:45]} Rb6 {[%emt 0:00:28]} 27. Qxc5 {[%emt 0:01:02]} Kb8 {[%emt 0:00:05]} 28. d7 {[%emt 0:01:40]} 1-0

[Event "Fagernes Chess GM-Swiss 2025"]
[Site "Fagernes"]
[Date "2025.04.17"]
[Round "6.2"]
[White "Urkedal, Frode Olav Olsen"]
[Black "Raja Rithvik R"]
[Result "1/2-1/2"]
[Annotator "RC"]
[ECO "E53"]
[WhiteElo "2550"]
[BlackElo "2538"]
[PlyCount "95"]
[EventDate "2025.04.12"]
[EventCountry "NOR"]
[SourceTitle "playchess.com"]
[Source "ChessBase"]
[SourceQuality "1"]
[TimeControl "40/6000+30:2400+30"]

1. d4 {[%emt 0:00:20]} Nf6 {[%emt 0:03:20]} 2. c4 {[%emt 0:00:05]} e6 {[%emt 0:00:03]} 3. Nc3 {[%emt 0:00:05]} Bb4 {[%emt 0:00:15]} 4. e3 {[%emt 0:00:06]} O-O {[%emt 0:00:17]} 5. Bd3 {[%emt 0:00:19]} d5 {[%emt 0:00:22]} 6. a3 {[%emt 0:00:16]} Bxc3+ {[%emt 0:00:14]} 7. bxc3 {[%emt 0:00:04]} dxc4 {[%emt 0:00:07]} 8. Bxc4 {[%emt 0:01:42]} c5 {[%emt 0:00:06]} 9. Nf3 {[%emt 0:00:23]} Qc7 {[%emt 0:00:17]} 10. Be2 {[%emt 0:01:06]} b6 {[%emt 0:00:24]} 11. Bb2 {[%emt 0:02:15]} cxd4 {[%emt 0:01:28]} 12. exd4 {[%emt 0:02:23]} Nd5 {[%emt 0:10:23]} 13. c4 {[%emt 0:08:54]} Nf4 {[%emt 0:00:18]} 14. Bf1 {[%emt 0:00:37]} Bb7 {[%emt 0:01:43]} 15. g3 {[%emt 0:00:31]} Ng6 {[%emt 0:10:24]} 16. Be2 {[%emt 0:03:57]} Nd7 {[%emt 0:00:46]} 17. h4 {[%emt 0:12:37]} h6 {[%emt 0:10:15]} 18. O-O {[%emt 0:10:47]} Rad8 {[%emt 0:08:52]} 19. Qc1 {[%emt 0:12:12]} Nf6 {[%emt 0:04:00]} 20. Nd2 {[%emt 0:12:42]} Ne7 {[%emt 0:02:44]} 21. Bf3 {[%emt 0:15:51]} Bxf3 {[%emt 0:10:31]} 22. Nxf3 {[%emt 0:00:06]} Rc8 {[%emt 0:01:59]} 23. d5 {[%emt 0:06:24]} Qxc4 {[%emt 0:01:59]} 24. Qxc4 {[%emt 0:00:12]} Rxc4 {[%emt 0:00:04]} 25. dxe6 {[%emt 0:00:51]} fxe6 {[%emt 0:00:34]} 26. Nd4 {[%emt 0:00:34]} e5 {[%emt 0:03:43]} 27. Ne6 {[%emt 0:04:52]} Re8 {[%emt 0:00:27]} 28. Bxe5 {[%emt 0:00:07]} Nf5 {[%emt 0:01:39]} 29. Bxf6 {[%emt 0:00:10]} Rxe6 {[%emt 0:00:03]} 30. Bb2 {[%emt 0:00:06]} Nxh4 {[%emt 0:10:17]} 31. Rac1 {[%emt 0:01:00]} Nf3+ {[%emt 0:01:08]} 32. Kg2 {[%emt 0:00:02]} Rxc1 {[%emt 0:00:06]} 33. Rxc1 {[%emt 0:00:34]} Ne1+ {[%emt 0:00:10]} 34. Kf1 {[%emt 0:00:06]} Nd3 {[%emt 0:00:04]} 35. Rc8+ {[%emt 0:00:04]} Kh7 {[%emt 0:00:04]} 36. Bc3 {[%emt 0:04:19]} Re7 {[%emt 0:00:49]} 37. a4 {[%emt 0:01:46]} h5 {[%emt 0:10:57]} 38. a5 {[%emt 0:04:34]} bxa5 {[%emt 0:03:42]} 39. Bxa5 {[%emt 0:00:06]} Rf7 {[%emt 0:02:16]} 40. Rc2 {[%emt 0:00:31]} g5 {[%emt 0:00:42]} 41. Ra2 {[%emt 0:42:56]} Nc5 {[%emt 0:48:08]} 42. Kg2 {[%emt 0:00:00]} Nb3 {[%emt 0:00:00]} 43. Ra3 {[%emt 0:00:00]} Nxa5 {[%emt 0:00:00]} 44. Rxa5 {[%emt 0:00:00]} Kg6 {[%emt 0:00:00]} 45. Ra6+ {[%emt 0:00:00]} Kh7 {[%emt 0:00:00]} 46. Ra5 {[%emt 0:00:00]} Rg7 {[%emt 0:00:00]} 47. Ra6 {[%emt 0:00:00]} Kg8 {[%emt 0:00:00]} 48. Kh3 {[%emt 0:00:00]} 1/2-1/2

[Event "Fagernes Chess GM-Swiss 2025"]
[Site "Fagernes"]
[Date "2025.04.17"]
[Round "6.3"]
[White "Ghosh, Diptayan"]
[Black "Hillarp Persson, Tiger"]
[Result "1-0"]
[Annotator "TA"]
[ECO "D02"]
[WhiteElo "2573"]
[BlackElo "2462"]
[PlyCount "75"]
[EventDate "2025.04.12"]
[EventCountry "NOR"]
[SourceTitle "playchess.com"]
[Source "ChessBase"]
[SourceQuality "1"]
[TimeControl "40/6000+30:2400+30"]

{[%evp 9,75,33,25,14,104,24,36,33,106,100,107,93,95,103,108,103,107,98,106,113,104,88,187,184,196,190,205,191,227,233,293,245,295,298,391,309,306,297,294,230,266,262,243,218,326,209,255,239,247,250,216,214,217,202,310,337,397,271,264,252,300,277,310,327,306,326,304,310]} 1. Nf3 {[%emt 0:01:26]} d5 {[%emt 0:06:19]} 2. g3 {[%emt 0:00:20]} Nc6 {[%emt 0:00:46]} 3. d4 {[%emt 0:00:27]} Bg4 {[%emt 0:00:11]} 4. Bg2 {[%emt 0:00:58]} Qd7 {[%emt 0:00:07]} 5. O-O {[%emt 0:04:54]} O-O-O {[%emt 0:00:24]} 6. c3 {[%emt 0:06:27]} Bh3 {[%emt 0:21:38]} (6... f6 $11) 7. Nbd2 {[%emt 0:10:37]} ({White should play} 7. Bxh3 $16 Qxh3 8. e4 dxe4 9. Ng5) 7... Bxg2 {[%emt 0:02:47]} 8. Kxg2 {[%emt 0:00:11] White is slightly better.} e5 {[%emt 0:08:58]} 9. Nxe5 $16 {[%emt 0:06:00]} (9. dxe5 Nge7 $14) 9... Nxe5 {[%emt 0:00:21]} 10. dxe5 {[%emt 0:00:04]} Ne7 {[%emt 0:08:38]} 11. Nf3 {[%emt 0:02:14]} h6 {[%emt 0:00:07]} 12. Be3 {[%emt 0:05:16]} Kb8 {[%emt 0:01:08]} 13. Qd3 {[%emt 0:07:47]} Nc6 {[%emt 0:13:47]} 14. b4 {[%emt 0:25:03] White is more active.} Qe8 {[%emt 0:05:15]} 15. Rad1 {[%emt 0:02:58]} Nxe5 {[%emt 0:02:18] [#]} (15... g5 $16) 16. Bxa7+ $1 $18 {[%emt 0:01:56][%mdl 512]} Kxa7 {[%emt 0:04:29]} (16... Ka8 17. Nxe5) 17. Qd4+ {[%emt 0:00:37]} Kb8 {[%emt 0:00:53]} 18. Qxe5 {[%emt 0:01:32]} (18. Nxe5 $6 Be7 $16) 18... Bd6 {[%emt 0:00:09]} 19. Qxg7 {[%emt 0:06:09]} Rg8 {[%emt 0:04:02]} 20. Qf6 {[%emt 0:00:54]} Qxe2 {[%emt 0:00:50]} 21. Rxd5 {[%emt 0:01:11]} (21. Qxf7 Rgf8 22. Qh5 (22. Qxd5 Be7 $18) 22... Qc4 23. Rxd5 (23. Qxd5 Qxc3 24. b5 Ba3 $18) 23... Qxc3 $18) 21... Qxa2 {[%emt 0:02:45]} 22. Ra5 {[%emt 0:01:11]} (22. Qxf7 Rgf8 23. Qh5 Qc4 $18) 22... Qe6 {[%emt 0:00:27] [#]} 23. Rfa1 $1 {[%emt 0:01:02][%csl Ga1][%cal Ra5a8]} c6 {[%emt 0:00:10]} (23... Rxg3+ 24. hxg3 Kc8 25. Ra8+ Kd7 26. Rxd8+ (26. Qxd8+ Kc6 27. Nd4+ Kd5 28. Nxe6 fxe6 29. Rd1+ Kc4 30. Ra3 h5 31. Rd4+ Kb5 32. Ra5+ Kc6 33. Qe8+ Kb6 34. Qb5#) 26... Kc6 27. Nd4+ Kd5 28. Nxe6) 24. Qxe6 {[%emt 0:04:23]} fxe6 {[%emt 0:00:07]} 25. Nd4 {[%emt 0:00:27]} Rg6 {[%emt 0:00:41]} 26. b5 {[%emt 0:03:35]} e5 {[%emt 0:03:52]} (26... Kc7 $142 27. bxc6 e5 28. Nb5+ Kxc6 29. Nxd6 Rdxd6 30. Rxe5 Rd3) 27. Nf5 {[%emt 0:01:14] b6 would now be deadly.} cxb5 {[%emt 0:01:47]} 28. Rxb5 {[%emt 0:00:51]} Bc7 {[%emt 0:01:14]} 29. Rab1 {[%emt 0:00:41]} b6 {[%emt 0:00:08]} 30. Ne3 {[%emt 0:00:10]} Kb7 {[%emt 0:03:25]} 31. Nd5 {[%emt 0:01:00]} Rd7 {[%emt 0:01:18]} (31... e4 $142 32. c4 Rdd6) 32. c4 {[%emt 0:01:02]} Bd8 {[%emt 0:00:08]} 33. Re1 {[%emt 0:00:45]} Rc6 {[%emt 0:01:15] White has a decisive advantage.} 34. Re4 {[%emt 0:00:42]} ({Don't take} 34. Rxe5 $6 Rxc4 35. Rb3 Rc6 $18) 34... Rc8 {[%emt 0:02:08]} 35. h4 {[%emt 0:00:42]} ({Don't play} 35. Rxe5 $6 Rxc4 36. Rb1 Rc6 $18) 35... Rd6 {[%emt 0:01:30]} 36. Ne3 {[%emt 0:03:35]} ({Much less strong is} 36. Rxe5 $6 Rxc4 37. Ne3 Rcc6 $18) 36... Bf6 {[%emt 0:01:00]} 37. Ng4 {[%emt 0:00:04]} Bg7 {[%emt 0:00:58]} 38. Nxe5 {[%emt 0:00:52] Weighted Error Value: White=0.24 (precise) /Black=0.32.  Mistake:       	White=1     	Black=5      Inaccurate:     	White=2     	Black=1      OK:         	White=17    	Black=13     Best:        	White=1     	Black=1      Brilliant:      	White=1     	---} 1-0

[Event "Fagernes Chess GM-Swiss 2025"]
[Site "Fagernes"]
[Date "2025.04.17"]
[Round "6.4"]
[White "Johansson, Linus"]
[Black "Makhnev, Denis"]
[Result "1/2-1/2"]
[Annotator "RC"]
[ECO "D26"]
[WhiteElo "2392"]
[BlackElo "2537"]
[PlyCount "34"]
[EventDate "2025.04.12"]
[EventCountry "NOR"]
[SourceTitle "playchess.com"]
[Source "ChessBase"]
[SourceQuality "1"]
[TimeControl "40/6000+30:2400+30"]

1. d4 {[%emt 0:00:07]} d5 {[%emt 0:03:11]} 2. c4 {[%emt 0:00:04]} dxc4 {[%emt 0:00:06]} 3. e3 {[%emt 0:00:11]} Nf6 {[%emt 0:00:59]} 4. Bxc4 {[%emt 0:00:08]} e6 {[%emt 0:00:08]} 5. Nf3 {[%emt 0:00:20]} Be7 {[%emt 0:00:35]} 6. O-O {[%emt 0:00:16]} O-O {[%emt 0:00:06]} 7. b3 {[%emt 0:01:37]} b6 {[%emt 0:00:58]} 8. Bb2 {[%emt 0:00:14]} Bb7 {[%emt 0:00:07]} 9. Nbd2 {[%emt 0:00:47]} Nbd7 {[%emt 0:00:41]} 10. Qe2 {[%emt 0:00:33]} a6 {[%emt 0:00:51]} 11. Rfd1 {[%emt 0:03:46]} c5 {[%emt 0:09:33]} 12. dxc5 {[%emt 0:00:59]} Bxc5 {[%emt 0:01:43]} 13. a3 {[%emt 0:01:34]} Qe7 {[%emt 0:00:17]} 14. b4 {[%emt 0:08:23]} Bd6 {[%emt 0:00:12]} 15. Bd3 {[%emt 0:00:26]} b5 {[%emt 0:03:10]} 16. Rac1 {[%emt 0:15:22]} Rac8 {[%emt 0:04:44]} 17. Bb1 {[%emt 0:02:02]} h6 {[%emt 0:00:52]} 1/2-1/2

[Event "Fagernes Chess GM-Swiss 2025"]
[Site "Fagernes"]
[Date "2025.04.17"]
[Round "6.5"]
[White "Moksh Amit Doshi"]
[Black "Kvaloy, Aksel Bu"]
[Result "1-0"]
[Annotator "RC"]
[ECO "E49"]
[WhiteElo "2369"]
[BlackElo "2481"]
[PlyCount "117"]
[EventDate "2025.04.12"]
[EventCountry "NOR"]
[SourceTitle "playchess.com"]
[Source "ChessBase"]
[SourceQuality "1"]
[TimeControl "40/6000+30:2400+30"]

1. d4 {[%emt 0:06:41]} Nf6 {[%emt 0:00:12]} 2. c4 {[%emt 0:00:07]} e6 {[%emt 0:00:00]} 3. Nc3 {[%emt 0:00:08]} Bb4 {[%emt 0:00:14]} 4. e3 {[%emt 0:00:06]} O-O {[%emt 0:00:37]} 5. Bd3 {[%emt 0:00:06]} d5 {[%emt 0:04:52]} 6. a3 {[%emt 0:00:08]} Bxc3+ {[%emt 0:17:15]} 7. bxc3 {[%emt 0:00:09]} c5 {[%emt 0:00:28]} 8. Ne2 {[%emt 0:03:29]} dxc4 {[%emt 0:06:15]} 9. Bxc4 {[%emt 0:00:58]} Qc7 {[%emt 0:00:47]} 10. Ba2 {[%emt 0:00:09]} b6 {[%emt 0:03:57]} 11. O-O {[%emt 0:02:02]} Ba6 {[%emt 0:00:24]} 12. Bb2 {[%emt 0:00:16]} Nc6 {[%emt 0:01:10]} 13. Rc1 {[%emt 0:02:18]} Na5 {[%emt 0:01:58]} 14. c4 {[%emt 0:00:25]} cxd4 {[%emt 0:02:01]} 15. Qxd4 {[%emt 0:00:16]} Nc6 {[%emt 0:15:39]} 16. Qh4 {[%emt 0:03:09]} Nd7 {[%emt 0:09:54]} 17. Nf4 {[%emt 0:11:41]} Nde5 {[%emt 0:04:53]} 18. Bb1 {[%emt 0:21:08]} Ng6 {[%emt 0:01:13]} 19. Qg3 {[%emt 0:04:54]} Rac8 {[%emt 0:01:36]} 20. Rfd1 {[%emt 0:11:32]} Rfd8 {[%emt 0:02:04]} 21. h4 {[%emt 0:02:45]} Rxd1+ {[%emt 0:02:58]} 22. Rxd1 {[%emt 0:00:06]} Rd8 {[%emt 0:02:36]} 23. Rc1 {[%emt 0:01:00]} e5 {[%emt 0:02:15]} 24. Nd5 {[%emt 0:03:56]} Qd6 {[%emt 0:00:43]} 25. h5 {[%emt 0:11:17]} Nf8 {[%emt 0:02:36]} 26. Be4 {[%emt 0:05:01]} Nd7 {[%emt 0:01:41]} 27. h6 {[%emt 0:04:53]} Qxh6 {[%emt 0:01:12]} 28. Nc7 {[%emt 0:00:25]} Nc5 {[%emt 0:07:29]} 29. Bxc6 {[%emt 0:02:28]} Qxc6 {[%emt 0:00:19]} 30. Nd5 {[%emt 0:03:09]} Kh8 {[%emt 0:08:05]} 31. Qxe5 {[%emt 0:02:39]} Ne6 {[%emt 0:00:41]} 32. Nb4 {[%emt 0:05:34]} Qc8 {[%emt 0:01:08]} 33. Nxa6 {[%emt 0:00:06]} Qxa6 {[%emt 0:00:29]} 34. f4 {[%emt 0:00:05]} Rg8 {[%emt 0:03:43]} 35. f5 {[%emt 0:00:22]} Nc5 {[%emt 0:00:06]} 36. Rd1 {[%emt 0:00:38]} Qc8 {[%emt 0:00:40]} 37. f6 {[%emt 0:00:25]} g6 {[%emt 0:00:18]} 38. Qe7 {[%emt 0:00:31]} Rf8 {[%emt 0:01:07]} 39. Be5 {[%emt 0:00:36]} Kg8 {[%emt 0:01:06]} 40. Qxa7 {[%emt 0:01:29]} Qg4 {[%emt 0:04:08]} 41. Rf1 {[%emt 0:42:06]} Ne4 {[%emt 0:09:28]} 42. Qxb6 {[%emt 0:00:00]} Nd2 {[%emt 0:00:46]} 43. Qd4 {[%emt 0:00:00]} Qxd4 {[%emt 0:01:04]} 44. exd4 {[%emt 0:00:00]} Nxf1 {[%emt 0:01:48]} 45. Kxf1 {[%emt 0:00:00]} Rc8 {[%emt 0:02:12]} 46. c5 {[%emt 0:00:00]} Kf8 {[%emt 0:00:24]} 47. Ke2 {[%emt 0:00:00]} Ke8 {[%emt 0:07:12]} 48. Kd3 {[%emt 0:00:00]} Kd7 {[%emt 0:02:52]} 49. Kc4 {[%emt 0:00:00]} Ra8 {[%emt 0:01:11]} 50. d5 {[%emt 0:00:00]} Rxa3 {[%emt 0:00:58]} 51. c6+ {[%emt 0:00:00]} Kd8 {[%emt 0:01:05]} 52. d6 {[%emt 0:00:00]} Ra6 {[%emt 0:04:47]} 53. Kb5 {[%emt 0:00:00]} Ra3 {[%emt 0:00:06]} 54. Bd4 {[%emt 0:00:00]} Rb3+ {[%emt 0:00:04]} 55. Ka6 {[%emt 0:04:46]} Rd3 {[%emt 0:00:12]} 56. Kb7 {[%emt 0:01:02]} Rxd4 {[%emt 0:01:13]} 57. c7+ {[%emt 0:00:10]} Kd7 {[%emt 0:00:02]} 58. c8=Q+ {[%emt 0:00:08]} Kxd6 {[%emt 0:00:04]} 59. Qe8 {[%emt 0:00:54]} 1-0

[Event "Fagernes Chess GM-Swiss 2025"]
[Site "Fagernes"]
[Date "2025.04.17"]
[Round "6.6"]
[White "Dotzer, Lukas"]
[Black "Willow, Jonah B"]
[Result "1/2-1/2"]
[Annotator "RC"]
[ECO "C03"]
[WhiteElo "2453"]
[BlackElo "2471"]
[PlyCount "24"]
[EventDate "2025.04.12"]
[EventCountry "NOR"]
[SourceTitle "playchess.com"]
[Source "ChessBase"]
[SourceQuality "1"]
[TimeControl "40/6000+30:2400+30"]

1. e4 {[%emt 0:00:02]} e6 {[%emt 0:06:26]} 2. d4 {[%emt 0:00:08]} d5 {[%emt 0:00:03]} 3. Nd2 {[%emt 0:00:08]} Be7 {[%emt 0:00:47]} 4. Bd3 {[%emt 0:00:06]} c5 {[%emt 0:00:40]} 5. dxc5 {[%emt 0:00:33]} Nf6 {[%emt 0:00:05]} 6. Qe2 {[%emt 0:07:34]} a5 {[%emt 0:02:14]} 7. Ngf3 {[%emt 0:02:52]} O-O {[%emt 0:01:01]} 8. O-O {[%emt 0:02:05]} Na6 {[%emt 0:00:09]} 9. e5 {[%emt 0:03:32]} Nd7 {[%emt 0:00:10]} 10. c3 {[%emt 0:00:13]} Naxc5 {[%emt 0:00:29]} 11. Bc2 {[%emt 0:00:11]} a4 {[%emt 0:00:39]} 12. Nd4 {[%emt 0:15:59]} f6 {[%emt 0:03:16]} 1/2-1/2

[Event "Fagernes Chess GM-Swiss 2025"]
[Site "Fagernes"]
[Date "2025.04.17"]
[Round "6.7"]
[White "Urazayev, Arystanbek"]
[Black "Mitusov, Semen"]
[Result "1/2-1/2"]
[Annotator "RC"]
[ECO "C55"]
[WhiteElo "2467"]
[BlackElo "2459"]
[PlyCount "120"]
[EventDate "2025.04.12"]
[EventCountry "NOR"]
[SourceTitle "playchess.com"]
[Source "ChessBase"]
[SourceQuality "1"]
[TimeControl "40/6000+30:2400+30"]

1. e4 {[%emt 0:01:51]} e5 {[%emt 0:01:11]} 2. Nf3 {[%emt 0:00:04]} Nc6 {[%emt 0:01:00]} 3. Bc4 {[%emt 0:00:07]} Nf6 {[%emt 0:00:36]} 4. Nc3 {[%emt 0:06:37]} Nxe4 {[%emt 0:01:06]} 5. Nxe4 {[%emt 0:00:07]} d5 {[%emt 0:00:04]} 6. Bd3 {[%emt 0:00:06]} dxe4 {[%emt 0:02:55]} 7. Bxe4 {[%emt 0:00:02]} Bd6 {[%emt 0:00:38]} 8. d4 {[%emt 0:00:05]} Nxd4 {[%emt 0:04:24]} 9. Nxd4 {[%emt 0:02:21]} exd4 {[%emt 0:00:08]} 10. Qxd4 {[%emt 0:01:23]} O-O {[%emt 0:01:45]} 11. Be3 {[%emt 0:00:35]} Be7 {[%emt 0:07:15]} 12. O-O-O {[%emt 0:09:02]} Qxd4 {[%emt 0:01:36]} 13. Bxd4 {[%emt 0:00:14]} c6 {[%emt 0:01:51]} 14. a4 {[%emt 0:11:35]} Be6 {[%emt 0:08:53]} 15. a5 {[%emt 0:04:49]} a6 {[%emt 0:00:41]} 16. Bb6 {[%emt 0:02:59]} h5 {[%emt 0:07:16]} 17. f4 {[%emt 0:04:13]} f5 {[%emt 0:12:43]} 18. Bf3 {[%emt 0:04:21]} g6 {[%emt 0:01:07]} 19. Rhe1 {[%emt 0:05:55]} Kf7 {[%emt 0:00:06]} 20. c3 {[%emt 0:15:17]} Rae8 {[%emt 0:08:01]} 21. Re3 {[%emt 0:13:48]} Bf6 {[%emt 0:03:27]} 22. Kc2 {[%emt 0:01:26]} Bc8 {[%emt 0:04:09]} 23. Red3 {[%emt 0:02:08]} Re6 {[%emt 0:01:28]} 24. Bd8 {[%emt 0:03:55]} Bg7 {[%emt 0:01:22]} 25. h4 {[%emt 0:09:29]} Rfe8 {[%emt 0:00:26]} 26. Bb6 {[%emt 0:00:53]} Bf6 {[%emt 0:00:44]} 27. Bf2 {[%emt 0:01:23]} R6e7 {[%emt 0:00:28]} 28. g3 {[%emt 0:01:26]} Be6 {[%emt 0:06:27]} 29. b3 {[%emt 0:01:00]} Bc8 {[%emt 0:06:21]} 30. Bd4 {[%emt 0:00:53]} Bxd4 {[%emt 0:01:26]} 31. Rxd4 {[%emt 0:00:09]} Re3 {[%emt 0:01:54]} 32. R4d3 {[%emt 0:00:12]} Kf6 {[%emt 0:04:26]} 33. c4 {[%emt 0:03:28]} Rxd3 {[%emt 0:01:42]} 34. Kxd3 {[%emt 0:01:01]} Rd8+ {[%emt 0:08:52]} 35. Kc3 {[%emt 0:00:08]} Rxd1 {[%emt 0:00:04]} 36. Bxd1 {[%emt 0:00:03]} Ke6 {[%emt 0:00:14]} 37. Kd4 {[%emt 0:00:53]} Kd6 {[%emt 0:00:02]} 38. b4 {[%emt 0:00:36]} Be6 {[%emt 0:02:36]} 39. Bb3 {[%emt 0:00:23]} Bf7 {[%emt 0:00:11]} 40. Bc2 {[%emt 0:02:46]} Be6 {[%emt 0:00:20]} 41. Bd1 {[%emt 0:40:52]} Bf7 {[%emt 0:43:04]} 42. Bf3 {[%emt 0:02:15]} Be6 {[%emt 0:00:33]} 43. Bg2 {[%emt 0:00:00]} Bd7 {[%emt 0:00:00]} 44. Kc3 {[%emt 0:00:00]} Bc8 {[%emt 0:00:00]} 45. Bf1 {[%emt 0:00:00]} Be6 {[%emt 0:00:00]} 46. Kd4 {[%emt 0:00:00]} Bc8 {[%emt 0:00:00]} 47. Bd3 {[%emt 0:00:00]} Bd7 {[%emt 0:00:00]} 48. Bb1 {[%emt 0:00:00]} Bc8 {[%emt 0:00:00]} 49. Ba2 {[%emt 0:00:00]} Be6 {[%emt 0:00:00]} 50. Bb3 {[%emt 0:02:22]} Bf7 {[%emt 0:00:00]} 51. c5+ {[%emt 0:01:29]} Ke7 {[%emt 0:00:00]} 52. Ba4 {[%emt 0:00:13]} Ke6 {[%emt 0:00:00]} 53. Bd1 {[%emt 0:00:58]} Kf6 {[%emt 0:00:00]} 54. Bf3 {[%emt 0:00:02]} Be8 {[%emt 0:00:00]} 55. Be2 {[%emt 0:00:22]} Bd7 {[%emt 0:00:00]} 56. Bc4 {[%emt 0:00:30]} Be6 {[%emt 0:00:00]} 57. Be2 {[%emt 0:00:57]} Bd7 {[%emt 0:00:00]} 58. Bd1 {[%emt 0:00:18]} Be6 {[%emt 0:00:00]} 59. Bc2 {[%emt 0:00:14]} Bd7 {[%emt 0:00:00]} 60. Ba4 {[%emt 0:00:27]} Be8 {[%emt 0:00:00]} 1/2-1/2

[Event "Fagernes Chess GM-Swiss 2025"]
[Site "Fagernes"]
[Date "2025.04.17"]
[Round "6.8"]
[White "Kulaots, Kaido"]
[Black "Csonka, Balazs"]
[Result "1/2-1/2"]
[Annotator "RC"]
[ECO "C65"]
[WhiteElo "2510"]
[BlackElo "2459"]
[PlyCount "98"]
[EventDate "2025.04.12"]
[EventCountry "NOR"]
[SourceTitle "playchess.com"]
[Source "ChessBase"]
[SourceQuality "1"]
[TimeControl "40/6000+30:2400+30"]

1. e4 {[%emt 0:00:07]} e5 {[%emt 0:00:05]} 2. Nf3 {[%emt 0:00:05]} Nc6 {[%emt 0:00:06]} 3. Bb5 {[%emt 0:00:05]} Nf6 {[%emt 0:00:06]} 4. d3 {[%emt 0:00:29]} Bc5 {[%emt 0:00:10]} 5. Bxc6 {[%emt 0:00:05]} dxc6 {[%emt 0:00:10]} 6. O-O {[%emt 0:00:07]} Qe7 {[%emt 0:00:31]} 7. Nbd2 {[%emt 0:03:19]} Bg4 {[%emt 0:00:51]} 8. h3 {[%emt 0:07:24]} Bh5 {[%emt 0:00:23]} 9. Nc4 {[%emt 0:00:06]} Nd7 {[%emt 0:00:45]} 10. a3 {[%emt 0:03:41]} O-O-O {[%emt 0:18:51]} 11. g4 {[%emt 0:24:13]} Bg6 {[%emt 0:02:42]} 12. b4 {[%emt 0:00:10]} Bd6 {[%emt 0:05:21]} 13. Bg5 {[%emt 0:12:41]} f6 {[%emt 0:00:50]} 14. Bd2 {[%emt 0:00:14]} Nf8 {[%emt 0:15:08]} 15. Nh4 {[%emt 0:09:04]} Ne6 {[%emt 0:04:28]} 16. Nf5 {[%emt 0:15:14]} Qd7 {[%emt 0:08:08]} 17. Be3 {[%emt 0:14:21]} Kb8 {[%emt 0:01:24]} 18. Qe2 {[%emt 0:02:42]} h5 {[%emt 0:16:25]} 19. Kg2 {[%emt 0:00:41]} Rh7 {[%emt 0:11:15]} 20. Rh1 {[%emt 0:01:53]} Rdh8 {[%emt 0:00:31]} 21. Rad1 {[%emt 0:03:15]} Bf7 {[%emt 0:07:10]} 22. Nfxd6 {[%emt 0:07:53]} cxd6 {[%emt 0:01:44]} 23. Nd2 {[%emt 0:00:05]} d5 {[%emt 0:04:13]} 24. Nb3 {[%emt 0:00:26]} d4 {[%emt 0:01:26]} 25. Bc1 {[%emt 0:00:48]} g5 {[%emt 0:00:59]} 26. Bd2 {[%emt 0:02:51]} Nf8 {[%emt 0:03:45]} 27. Nc1 {[%emt 0:00:56]} Be6 {[%emt 0:01:30]} 28. f3 {[%emt 0:00:18]} Ng6 {[%emt 0:01:36]} 29. Rdg1 {[%emt 0:00:43]} Rh6 {[%emt 0:01:04]} 30. Qe1 {[%emt 0:00:49]} Qh7 {[%emt 0:02:08]} 31. Ne2 {[%emt 0:00:31]} hxg4 {[%emt 0:01:06]} 32. hxg4 {[%emt 0:00:16]} Rh2+ {[%emt 0:00:10]} 33. Rxh2 {[%emt 0:00:09]} Qxh2+ {[%emt 0:00:02]} 34. Kf1 {[%emt 0:00:06]} Qh3+ {[%emt 0:01:23]} 35. Kf2 {[%emt 0:00:05]} Nh4 {[%emt 0:00:38]} 36. Rg3 {[%emt 0:00:43]} Qh2+ {[%emt 0:00:08]} 37. Kf1 {[%emt 0:00:04]} Nxf3 {[%emt 0:00:58]} 38. Rxf3 {[%emt 0:00:38]} Bxg4 {[%emt 0:00:18]} 39. Qg3 {[%emt 0:00:52]} Bh3+ {[%emt 0:00:58]} 40. Ke1 {[%emt 0:00:22]} Qh1+ {[%emt 0:00:07]} 41. Ng1 {[%emt 0:41:47]} Bg2 {[%emt 0:02:06]} 42. Rf1 {[%emt 0:00:00]} a6 {[%emt 0:10:12]} 43. Qf2 {[%emt 0:00:00]} Bxf1 {[%emt 0:04:15]} 44. Kxf1 {[%emt 0:00:00]} Rh2 {[%emt 0:13:39]} 45. Qf3 {[%emt 0:00:00]} Qxf3+ {[%emt 0:00:08]} 46. Nxf3 {[%emt 0:00:00]} Rh1+ {[%emt 0:00:06]} 47. Ng1 {[%emt 0:00:00]} Rh2 {[%emt 0:00:06]} 48. Nf3 {[%emt 0:00:00]} Rh1+ {[%emt 0:00:05]} 49. Ng1 {[%emt 0:00:00]} Rh2 {[%emt 0:00:16]} 1/2-1/2